bitfinex/quotes_ETHUSD_20250518
["timestamp","ask_amount","ask_price","bid_price","bid_amount"]
[1747578828501,3.94126482,2537.3,2537.1,7.977]
[1747578829010,4.78979543,2537.7,2537.1,7.977]
[1747578829210,0.8492,2537.7,2537.1,7.977]
[1747578829496,3.9411907,2537.4,2537.1,7.977]
[1747578829659,3.94098057,2537.5,2537.1,7.977]
[1747578830278,3.94120429,2537.3,2537.1,7.977]
[1747578831008,3.94136698,2537.2,2536.9,1.0271]
[1747578831205,3.94106334,2537.4,2537.0,7.975]
[1747578831364,3.94125105,2537.3,2537.0,7.975]
[1747578833099,3.94083329,2537.6,2537.0,10.06759695]
[1747578833297,3.94091446,2537.5,2537.1,1.0003]
[1747578833603,3.94091446,2537.5,2537.1,4.94179282]
[1747578833975,3.94091446,2537.5,2537.1,1.0003]
[1747578836502,3.94112192,2537.4,2537.2,7.973]
[1747578836681,3.94112192,2537.4,2536.9,3.94173149]
[1747578836682,3.94135267,2537.2,2536.9,7.982]
[1747578836880,3.9412802,2537.3,2537.0,7.973]
[1747578837468,0.8521,2537.7,2537.1,1.0003]
[1747578837679,0.8521,2537.7,2537.1,1.37084838]
[1747578837909,3.94116258,2537.4,2537.1,1.37084838]
[1747578838202,3.94096778,2537.5,2537.1,1.37084838]
[1747578838885,3.94096545,2537.5,2537.1,3.49759303]
[1747578839609,3.94096545,2537.5,2537.1,3.12704465]
[1747578839784,3.94096545,2537.5,2537.2,7.971]
[1747578840605,3.94039069,2537.9,2537.3,1.0314]
[1747578840902,0.8521,2538.2,2537.5,4.97221034]
[1747578840903,3.94013135,2538.0,2537.5,4.97221034]
[1747578841215,3.94013135,2538.0,2537.6,7.982]
[1747578841383,3.94013135,2538.0,2537.7,7.97]
[1747578841578,3.94000825,2538.1,2537.7,7.97]
[1747578842120,3.9397303,2538.3,2537.8,4.97182004]
[1747578842288,3.93979985,2538.2,2537.8,1.0314]
[1747578843639,3.93944876,2538.5,2537.9,4.94826462]
[1747578843804,3.93944876,2538.5,2538.0,4.94813834]
[1747578844129,3.93944876,2538.5,2538.1,7.982]
[1747578844420,3.93964464,2538.3,2538.2,7.968]
[1747578844626,3.93936885,2538.5,2538.2,7.968]
[1747578844800,3.93950162,2538.4,2538.2,7.968]
[1747578844995,3.93961296,2538.4,2538.3,7.967]
[1747578845310,3.93955243,2538.4,2538.3,7.967]
[1747578846188,3.9396953,2538.3,2538.0,1.0081]
[1747578846393,3.9396953,2538.3,2538.1,15.934]
[1747578846720,3.93895817,2538.8,2538.2,4.9477558]
[1747578846920,3.93916314,2538.7,2538.2,1.0081]
[1747578847293,3.93908141,2538.7,2538.2,4.94782645]
[1747578847491,3.93908141,2538.7,2538.3,2.16084492]
[1747578847687,3.93939646,2538.5,2538.3,2.16084492]
[1747578848025,3.93932984,2538.6,2538.4,7.965]
[1747578848195,3.93940742,2538.5,2538.2,8.9741]
[1747578848401,3.93948944,2538.4,2538.1,0.72662277]
[1747578848622,3.88948944,2538.4,2538.3,7.965]
[1747578849032,3.93948944,2538.4,2538.3,7.964]
[1747578849331,3.93994619,2538.2,2538.1,7.964]
[1747578849896,3.93999265,2538.1,2537.9,1.0401]
[1747578850093,3.93999265,2538.1,2538.0,7.964]
[1747578850328,3.94011032,2538.0,2537.9,1.09953725]
[1747578850531,0.55,2538.5,2537.7,1.0401]
[1747578850731,3.93976415,2538.3,2537.8,7.963]
[1747578850897,3.94026557,2537.9,2537.8,7.963]
[1747578851229,3.94057611,2537.7,2537.6,0.464578]
[1747578851526,3.94057611,2537.7,2537.6,8.427578]
[1747578851732,3.94057611,2537.7,2537.6,7.963]
[1747578853129,3.94057611,2537.7,2537.1,20.95339691]
[1747578853130,3.94059902,2537.7,2537.1,7.962]
[1747578853433,3.94150802,2537.1,2537.0,1.0401]
[1747578853609,3.94166338,2537.0,2536.9,0.464578]
[1747578853806,0.8521,2537.4,2536.9,9.43003501]
[1747578854209,3.94197414,2536.8,2536.7,0.9856]
[1747578854410,3.94189998,2536.9,2536.7,0.9856]
[1747578854612,3.94197414,2536.8,2536.7,8.9466]
[1747578855249,3.94175753,2537.0,2536.7,8.9466]
[1747578855739,3.94185394,2536.9,2536.7,8.9466]
[1747578855910,3.94185394,2536.9,2536.7,7.961]
[1747578856116,0.55,2537.2,2536.5,17.9986]
[1747578856334,3.94205758,2536.8,2536.6,7.96]
[1747578856533,3.94167266,2537.0,2536.6,11.35246]
[1747578856734,3.94190295,2536.9,2536.6,11.35246]
[1747578856940,3.94153844,2537.1,2536.6,11.35246]
[1747578857122,7.967,2538.0,2536.7,8.0]
[1747578857324,3.94057951,2537.7,2536.9,0.9856]
[1747578857646,3.94098855,2537.5,2537.0,8.46368714]
[1747578857821,3.94098855,2537.5,2537.1,7.96]
[1747578858436,3.94125147,2537.3,2537.2,15.927]
[1747578859352,3.94150802,2537.1,2537.0,7.967]
[1747578859560,3.94134674,2537.3,2537.0,15.927]
[1747578859779,3.94150802,2537.1,2537.0,15.927]
[1747578859961,3.94141255,2537.2,2537.0,15.927]
[1747578860323,3.94107746,2537.4,2537.0,17.61826]
[1747578860646,3.940933,2537.5,2537.0,17.61826]
[1747578862160,3.94075565,2537.6,2537.0,21.55980512]
[1747578862739,3.94073462,2537.6,2537.1,0.992]
[1747578863063,3.94080569,2537.6,2537.1,0.992]
[1747578863267,3.94080569,2537.6,2537.0,17.61826]
[1747578863268,3.94035165,2537.9,2537.2,1.861026]
[1747578863443,3.94043754,2537.8,2537.3,15.925]
[1747578863639,3.9404953,2537.8,2537.3,15.925]
[1747578864071,3.94073832,2537.6,2537.3,15.925]
[1747578864232,3.94073832,2537.6,2537.2,2.853026]
[1747578864434,3.94073832,2537.6,2537.3,17.40345176]
[1747578864988,3.94057687,2537.7,2537.3,17.40345176]
[1747578865133,3.94011032,2538.0,2537.3,21.34463809]
[1747578865459,3.94006412,2538.1,2537.5,3.94080652]
[1747578865651,3.93979017,2538.3,2537.4,0.992]
[1747578865853,3.93982506,2538.2,2537.7,3.94053093]
[1747578866070,3.93982506,2538.2,2537.8,15.923]
[1747578867166,3.93972528,2538.3,2537.8,15.923]
[1747578867367,3.93972528,2538.3,2537.9,0.992]
[1747578868151,3.93972877,2538.3,2537.9,0.992]
[1747578868362,3.93972877,2538.3,2538.0,2.08552849]
[1747578868566,3.93951605,2538.4,2538.0,2.08552849]
[1747578869277,3.93934552,2538.5,2538.0,6.02562383]
[1747578869779,3.93907948,2538.7,2538.1,15.921]
[1747578869780,3.93976002,2538.3,2538.1,15.921]
[1747578870140,3.93955873,2538.4,2538.1,15.921]
[1747578870565,3.93976176,2538.3,2538.1,15.921]
[1747578871044,3.93944025,2538.5,2538.1,17.6123]
[1747578871246,3.9392381,2538.6,2538.1,17.6123]
[1747578871448,3.93904739,2538.7,2538.2,0.992]
[1747578871955,3.93924879,2538.6,2538.2,0.992]
[1747578872262,3.93886875,2538.8,2538.3,1.86043]
[1747578872445,3.93933425,2538.5,2538.4,7.952]
[1747578872878,3.93933425,2538.5,2538.2,0.992]
[1747578872879,3.93964464,2538.3,2538.2,8.958]
[1747578873081,3.93964464,2538.3,2538.2,16.91]
[1747578873253,3.93964464,2538.3,2538.2,15.918]
[1747578874573,3.93995109,2538.2,2537.9,0.992]
[1747578874793,3.93995109,2538.2,2538.0,15.917]
[1747578874965,3.93985986,2538.2,2538.0,17.6079]
[1747578875281,3.93948944,2538.4,2538.0,17.6079]
[1747578875496,3.93980615,2538.2,2538.0,17.6079]
[1747578875646,3.93938073,2538.5,2538.0,17.6079]
[1747578876195,3.93965719,2538.3,2538.0,17.6079]
[1747578876354,3.93965719,2538.3,2538.1,1.85999]
[1747578877386,3.93922417,2538.6,2538.2,0.992]
[1747578877590,3.93936259,2538.5,2538.2,0.992]
[1747578879186,8.6621,2539.0,2538.2,0.992]
[1747578879366,3.93941913,2538.5,2538.2,0.992]
[1747578879566,3.93941913,2538.5,2538.3,0.285199]
[1747578879876,3.93924088,2538.6,2538.3,0.285199]
[1747578880692,3.93907315,2538.7,2538.3,0.285199]
[1747578880892,0.6621,2539.0,2538.3,0.285199]
[1747578880893,3.93919104,2538.6,2538.3,0.285199]
[1747578882059,3.93895559,2538.8,2538.3,4.22483874]
[1747578882258,3.93895559,2538.8,2538.5,0.9387]
[1747578882566,3.93895001,2538.8,2538.6,7.946]
[1747578883293,3.93879218,2538.9,2538.6,7.946]
[1747578883798,3.93889198,2538.8,2538.6,7.946]
[1747578883993,3.93858857,2539.0,2538.6,7.946]
[1747578884155,3.93870769,2539.0,2538.7,2.07729782]
[1747578884357,3.93870769,2539.0,2538.8,0.9001]
[1747578885689,3.93871361,2538.9,2538.8,0.9001]
[1747578886000,3.93871361,2538.9,2538.8,16.7921]
[1747578886199,8.0,2539.5,2538.8,16.7921]
[1747578886399,3.93840109,2539.2,2538.8,19.07295716]
[1747578886595,3.93843158,2539.1,2538.8,19.07295716]
[1747578887900,0.6621,2539.7,2538.8,19.07295716]
[1747578888205,0.6621,2539.7,2538.9,0.9001]
[1747578888503,3.93846591,2539.1,2538.9,2.80739572]
[1747578888662,3.9379181,2539.5,2538.9,2.80739572]
[1747578888861,3.93847896,2539.1,2538.9,2.80739572]
[1747578889302,3.93811438,2539.3,2538.9,2.80739572]
[1747578889502,3.9381315,2539.3,2539.0,1.86993957]
[1747578889802,3.93835119,2539.2,2539.0,1.86993957]
[1747578890382,3.93815146,2539.3,2539.0,1.86993957]
[1747578890569,3.93840337,2539.1,2539.0,1.86993957]
[1747578890902,0.6621,2539.7,2539.0,1.86993957]
[1747578891204,3.93801351,2539.4,2539.0,1.86993957]
[1747578891404,3.93811542,2539.3,2539.1,0.27700396]
[1747578891600,3.93813394,2539.3,2539.1,0.27700396]
[1747578891806,3.93810208,2539.3,2539.1,0.27700396]
[1747578892399,3.93810208,2539.3,2538.6,3.93915154]
[1747578892400,4.45613507,2539.4,2538.7,0.9464]
[1747578892593,3.93809317,2539.3,2538.7,0.9464]
[1747578892773,0.6621,2539.4,2538.7,0.9464]
[1747578892975,3.93842205,2539.1,2538.7,0.9464]
[1747578893310,3.93806589,2539.4,2538.7,12.83334715]
[1747578893493,3.93829717,2539.2,2538.8,2.21353472]
[1747578893674,3.93829717,2539.2,2538.9,7.938]
[1747578893885,3.93817462,2539.3,2538.9,7.938]
[1747578894214,3.93826439,2539.2,2538.9,7.938]
[1747578894819,3.93814035,2539.3,2539.0,0.9302]
[1747578895038,3.93814035,2539.3,2539.1,0.88682]
[1747578895823,3.93824826,2539.2,2539.1,0.88682]
[1747578896410,3.93824826,2539.2,2539.1,7.936]
[1747578898122,4.59933009,2539.9,2539.1,7.936]
[1747578898424,3.93803121,2539.4,2539.1,7.936]
[1747578898598,3.93792309,2539.5,2539.1,7.936]
[1747578899087,3.93765446,2539.6,2539.1,7.936]
[1747578899088,3.93769867,2539.6,2539.1,7.936]
[1747578899401,3.93747292,2539.7,2539.3,0.9302]
[1747578899596,3.9376448,2539.6,2539.3,0.9302]
[1747578900134,3.93755182,2539.7,2539.3,0.9302]
[1747578900301,3.93791934,2539.5,2539.4,7.933]
[1747578900512,3.93770202,2539.6,2539.4,9.74206697]
[1747578900828,3.93731141,2539.9,2539.5,0.9302]
[1747578901016,3.93762797,2539.6,2539.5,0.9302]
[1747578901216,0.6621,2540.1,2539.6,7.933]
[1747578901836,3.93762552,2539.7,2539.5,0.9302]
[1747578902132,8.62691061,2540.8,2539.7,0.9302]
[1747578902308,0.6621,2540.7,2539.8,2.97151238]
[1747578902511,3.93650698,2540.4,2539.9,0.9302]
[1747578902803,3.93667433,2540.3,2540.0,15.877]
[1747578903007,3.93675646,2540.2,2540.0,7.931]
[1747578903255,0.6621,2540.7,2540.0,8.92434132]
[1747578903433,0.6621,2540.7,2540.1,7.946]
[1747578903637,0.6621,2540.7,2540.0,0.99334132]
[1747578903638,3.93666489,2540.3,2540.0,0.99334132]
[1747578903814,3.93685287,2540.1,2539.9,0.9302]
[1747578904127,3.93700787,2540.0,2539.9,0.9302]
[1747578904310,3.9369267,2540.1,2539.9,16.8052]
[1747578904508,3.93687929,2540.1,2539.9,0.9302]
[1747578904726,3.93678086,2540.2,2540.0,7.93]
[1747578904921,3.93644527,2540.4,2540.0,7.93]
[1747578905147,3.93669791,2540.2,2540.0,7.93]
[1747578905326,3.93663911,2540.3,2540.0,7.93]
[1747578905524,0.6621,2540.7,2540.0,1.68052]
[1747578905948,3.93642513,2540.4,2540.0,1.68052]
[1747578906152,3.93694921,2540.1,2539.8,8.8582]
[1747578906313,3.93679075,2540.2,2539.8,8.8582]
[1747578906647,3.93679075,2540.2,2539.8,9.15597509]
[1747578906648,3.93672155,2540.2,2539.8,9.15597509]
[1747578907949,3.93686126,2540.1,2539.8,9.15597509]
[1747578908117,0.6621,2540.5,2539.8,9.15597509]
[1747578908309,3.93679267,2540.2,2539.9,7.926]
[1747578908539,3.93679267,2540.2,2539.8,1.22797509]
[1747578908835,0.6621,2540.5,2540.0,7.926]
[1747578909035,3.93671869,2540.2,2539.8,1.74452408]
[1747578909237,3.93671869,2540.2,2539.9,15.853]
[1747578909443,3.93638797,2540.4,2539.9,19.79010152]
[1747578909444,3.93639114,2540.4,2539.9,19.79010152]
[1747578909636,3.93639114,2540.4,2540.0,2.54719272]
[1747578909950,3.93656136,2540.3,2540.0,2.54719272]
[1747578910650,3.9353036,2541.1,2540.1,0.9682]
[1747578910851,3.93545848,2541.0,2540.1,0.9682]
[1747578911148,3.93651325,2540.4,2540.2,0.74523446]
[1747578911351,3.93654292,2540.3,2540.2,7.927]
[1747578911522,3.93654292,2540.3,2540.2,15.851]
[1747578911923,3.93646898,2540.4,2540.2,15.851]
[1747578912119,3.93669789,2540.2,2540.1,0.9682]
[1747578912428,3.93620873,2540.6,2540.1,8.8912]
[1747578912637,3.93664008,2540.3,2540.1,7.923]
[1747578912821,11.93559277,2541.0,2540.1,9.43855194]
[1747578913020,3.93612746,2540.6,2540.1,9.43855194]
[1747578913247,0.6621,2540.9,2540.1,9.43855194]
[1747578913551,3.93576826,2540.8,2540.2,0.948]
[1747578913750,0.6621,2540.9,2540.2,0.948]
[1747578913915,3.93576826,2540.8,2540.3,1.03865519]
[1747578914355,3.93605095,2540.7,2540.3,1.03865519]
[1747578914848,4.5975096,2541.1,2540.3,1.03865519]
[1747578914849,3.93584807,2540.8,2540.3,4.97515401]
[1747578915018,3.93565843,2540.9,2540.4,3.93638263]
[1747578915216,3.93565843,2540.9,2540.6,0.948]
[1747578915419,3.93565843,2540.9,2540.6,9.7565]
[1747578915639,3.93592317,2540.7,2540.6,9.7565]
[1747578916047,3.93592317,2540.7,2540.6,1.8355]
[1747578916233,3.93592317,2540.7,2540.6,8.868]
[1747578916639,3.93631032,2540.5,2540.4,0.948]
[1747578916852,3.93631032,2540.5,2540.4,16.793]
[1747578917055,3.93638797,2540.4,2540.3,8.96465519]
[1747578917244,3.93638797,2540.4,2540.3,16.88365519]
[1747578917439,3.93638797,2540.4,2540.3,1.03865519]
[1747578917756,3.93654292,2540.3,2540.2,7.99464282]
[1747578917955,3.93654292,2540.3,2540.2,15.91364282]
[1747578918325,0.6621,2540.7,2540.2,7.98764282]
[1747578918535,3.93638002,2540.5,2540.2,0.06864282]
[1747578918737,3.93638002,2540.5,2540.3,7.918]
[1747578918935,3.93638797,2540.4,2540.3,7.918]
[1747578919755,3.93638797,2540.4,2540.2,0.06864282]
[1747578919960,3.93638797,2540.4,2540.3,7.917]
[1747578920566,3.93654292,2540.3,2540.2,0.06864282]
[1747578922561,3.93650501,2540.4,2540.2,0.9600471]
[1747578923558,3.93654292,2540.3,2540.2,0.9600471]
[1747578924061,3.93654292,2540.3,2540.2,8.8860471]
[1747578924358,3.93654292,2540.3,2540.2,0.06864282]
[1747578924526,3.93565579,2540.9,2540.2,0.06864282]
[1747578924527,1.28901061,2541.8,2540.9,3.93561336]
[1747578924732,1.28901061,2541.8,2541.1,0.8881]
[1747578924931,1.28901061,2541.8,2541.1,12.8234036]
[1747578924932,0.5,2541.2,2541.1,12.8234036]
[1747578925154,0.5,2541.2,2541.1,16.14729392]
[1747578925861,0.5,2541.2,2541.1,31.98729392]
[1747578926362,0.5,2541.2,2541.1,32.28614783]
[1747578927129,0.5,2541.2,2541.1,43.60592275]
[1747578927365,0.62691061,2541.8,2541.5,3.93459277]
[1747578927577,0.62691061,2541.8,2541.6,15.839]
[1747578927763,0.6618,2542.4,2541.6,3.93450968]
[1747578927764,3.93367399,2542.2,2541.6,3.93450968]
[1747578928064,3.93367399,2542.2,2541.7,15.839]
[1747578928264,3.93367399,2542.2,2541.8,0.8881]
[1747578928562,3.93376031,2542.1,2541.8,0.8881]
[1747578928765,3.93401828,2542.0,2541.8,0.8881]
[1747578928936,3.93401828,2542.0,2541.9,15.835]
[1747578929465,3.93400895,2542.0,2541.8,7.911]
[1747578929644,3.93395523,2542.0,2541.8,7.911]
[1747578929846,3.93385703,2542.1,2541.8,9.4945]
[1747578930046,3.9338436,2542.1,2541.9,15.835]
[1747578930266,3.9338436,2542.1,2541.6,3.93449424]
[1747578930465,3.93451263,2541.7,2541.5,0.8881]
[1747578930668,3.93468424,2541.5,2541.4,0.1507018]
[1747578931163,3.93426724,2541.8,2541.4,8.0607018]
[1747578931397,3.93420955,2541.9,2541.4,8.0607018]
[1747578932051,3.93447036,2541.7,2541.4,8.0607018]
[1747578932251,3.93452943,2541.6,2541.5,7.909]
[1747578932480,0.55,2542.3,2541.5,8.7971]
[1747578932653,3.93452943,2541.6,2541.4,0.1507018]
[1747578932856,3.93452943,2541.6,2541.5,7.909]
[1747578934081,3.93452943,2541.6,2541.4,0.1507018]
[1747578934459,3.93452943,2541.6,2541.5,7.908]
[1747578934781,3.93452943,2541.6,2541.4,8.0727018]
[1747578934782,3.93468424,2541.5,2541.4,0.1507018]
[1747578934957,3.93468424,2541.5,2541.4,8.0587018]
[1747578935155,3.93468424,2541.5,2541.4,0.1507018]
[1747578936775,4.59648424,2541.5,2541.4,0.1507018]
[1747578938163,4.59648424,2541.5,2540.6,3.93595911]
[1747578938164,8.0,2541.5,2539.7,0.61839208]
[1747578938399,3.93700787,2540.0,2539.7,0.61839208]
[1747578938560,0.55,2540.5,2539.7,0.61839208]
[1747578938903,3.93664887,2540.3,2539.8,0.9282]
[1747578939286,3.93640402,2540.4,2540.0,7.906]
[1747578939482,3.93667137,2540.3,2540.0,7.906]
[1747578940003,3.93619202,2540.6,2540.1,8.8370578]
[1747578940208,0.5111,2541.0,2540.1,8.8370578]
[1747578940209,0.5111,2541.0,2540.2,7.907]
[1747578940509,3.93620205,2540.6,2540.2,7.907]
[1747578941204,12.33016127,2540.9,2540.0,7.907]
[1747578941408,0.55,2540.6,2539.5,0.9282]
[1747578941567,0.55,2540.6,2539.6,7.907]
[1747578941568,3.93706985,2540.0,2539.6,7.907]
[1747578941772,3.93702935,2540.0,2539.6,7.907]
[1747578942641,0.5111,2540.2,2539.1,0.9282]
[1747578942917,3.93824826,2539.2,2539.1,0.9282]
[1747578943211,3.93840337,2539.1,2539.0,0.464578]
[1747578943406,3.93840337,2539.1,2539.0,9.36539501]
[1747578943717,3.93833321,2539.2,2539.0,8.90081701]
[1747578944006,3.93798575,2539.4,2539.0,8.90081701]
[1747578944007,3.9380878,2539.4,2539.0,8.90081701]
[1747578944376,1.0611,2539.9,2539.0,8.90081701]
[1747578944707,3.93731789,2539.8,2539.2,3.93824136]
[1747578944908,3.93747535,2539.7,2539.3,0.48664414]
[1747578945101,3.93774086,2539.6,2539.4,7.908]
[1747578945295,0.5111,2540.2,2539.4,7.908]
[1747578945497,0.5111,2540.2,2539.1,8.9282]
[1747578945498,3.93791954,2539.5,2539.1,8.9282]
[1747578945814,3.93818249,2539.3,2539.2,15.817]
[1747578945973,3.93818249,2539.3,2539.2,7.908]
[1747578946603,0.55,2539.9,2539.1,2.31406038]
[1747578946797,0.55,2540.1,2539.2,7.908]
[1747578946798,3.93793758,2539.5,2539.2,7.908]
[1747578947199,0.5111,2540.0,2539.3,7.909]
[1747578947402,3.93793809,2539.4,2539.3,7.909]
[1747578949724,3.93886875,2538.8,2538.7,0.24162825]
[1747578950227,4.48995508,2538.1,2537.2,0.30225518]
[1747578950410,5.00105508,2538.1,2537.2,0.30225518]
[1747578950800,13.00105508,2538.1,2537.2,0.30225518]
[1747578950999,13.00105508,2538.1,2537.2,8.44025518]
[1747578951208,13.00105508,2538.1,2537.2,8.138]
[1747578951406,13.00105508,2538.1,2537.2,8.136]
[1747578951803,13.00105508,2538.1,2537.1,1.21654125]
[1747578952325,3.94154787,2537.1,2536.8,0.9503]
[1747578952530,3.94134934,2537.3,2536.9,7.913]
[1747578952720,3.94138014,2537.2,2537.0,8.126]
[1747578953936,3.94150802,2537.1,2537.0,8.126]
[1747578954340,3.9414249,2537.2,2537.0,8.126]
[1747578954834,3.94104363,2537.4,2537.0,8.126]
[1747578955035,3.94078864,2537.6,2537.0,8.126]
[1747578955339,3.9409223,2537.5,2537.1,1.692533]
[1747578955501,3.94065668,2537.7,2537.1,5.63398807]
[1747578955701,17.963,2538.3,2537.1,5.63398807]
[1747578955702,8.0,2538.3,2537.2,0.9503]
[1747578955903,4.45987791,2538.4,2537.5,3.9408815]
[1747578955904,0.5203,2538.4,2537.5,3.9408815]
[1747578956237,3.94003339,2538.1,2537.6,16.9963]
[1747578956450,3.94003339,2538.1,2537.6,20.93702734]
[1747578956733,3.93911241,2538.7,2537.9,4.89056557]
[1747578956932,3.93911241,2538.7,2538.2,8.0]
[1747578957242,3.93911241,2538.7,2538.3,16.053]
[1747578957736,3.9389476,2538.8,2538.4,0.9503]
[1747578957935,3.93830686,2539.2,2538.4,0.9503]
[1747578958139,3.93897893,2538.8,2538.4,0.9503]
[1747578958338,3.93897893,2538.8,2538.4,3.84460697]
[1747578958812,3.93879169,2538.9,2538.4,3.84460697]
[1747578959017,8.4353,2539.7,2538.5,0.03938824]
[1747578959214,3.9385032,2539.1,2538.5,3.9392689]
[1747578959413,3.9385032,2539.1,2538.4,7.78408189]
[1747578959622,3.93856798,2539.0,2538.5,6.32295732]
[1747578959817,3.93827776,2539.2,2538.5,6.32293109]
[1747578960018,3.93811255,2539.3,2538.8,3.93878109]
[1747578960219,0.3285569,2539.6,2538.8,3.93878109]
[1747578960220,0.3285569,2539.6,2538.9,16.034]
[1747578960440,3.93871361,2538.9,2538.8,0.9503]
[1747578960653,3.93871361,2538.9,2538.8,16.9823]
[1747578960958,3.93871361,2538.9,2538.8,8.118]
[1747578963841,3.93849116,2539.1,2538.7,8.095]
[1747578964152,3.93886875,2538.8,2538.7,8.095]
[1747578964504,3.93843479,2539.1,2538.7,8.095]
[1747578964735,3.93881295,2538.9,2538.8,16.013]
[1747578964935,3.93863699,2539.0,2538.8,16.01]
[1747578965179,3.9380632,2539.4,2538.8,17.611]
[1747578965314,3.93731789,2539.8,2538.9,0.9793]
[1747578965648,3.93802804,2539.4,2538.9,0.9793]
[1747578965940,3.93795564,2539.4,2538.9,4.9179747]
[1747578966140,3.93785073,2539.5,2539.0,3.93854054]
[1747578966343,3.93757755,2539.7,2539.1,0.49178405]
[1747578966527,3.93769479,2539.6,2539.1,0.49178405]
[1747578966730,3.93731789,2539.8,2539.1,0.49178405]
[1747578967042,3.93795738,2539.4,2538.9,0.9793]
[1747578967244,3.93886875,2538.8,2538.7,8.085]
[1747578967444,3.93886875,2538.8,2538.6,17.9863]
[1747578967445,3.9390239,2538.7,2538.6,17.9863]
[1747578967629,3.93933425,2538.5,2538.4,8.085]
[1747578967945,3.93950729,2538.4,2538.3,8.085]
[1747578968139,0.5203,2539.0,2538.3,8.085]
[1747578968327,3.93931018,2538.6,2538.4,8.087]
[1747578968703,3.93828255,2539.2,2538.5,0.9135]
[1747578968933,3.93917907,2538.6,2538.5,0.9135]
[1747578969106,3.939451,2538.5,2538.0,1.28905656]
[1747578969348,3.93905519,2538.7,2538.1,17.1165]
[1747578969640,3.93871361,2538.9,2538.1,20.15106583]
[1747578969840,3.93950361,2538.4,2538.1,20.15106583]
[1747578970021,3.93974762,2538.3,2538.2,8.085]
[1747578970216,3.93974762,2538.3,2538.2,16.198]
[1747578970645,3.94003947,2538.1,2538.0,8.085]
[1747578970846,3.9390239,2538.7,2538.0,16.193]
[1747578971042,3.93968471,2538.3,2538.0,16.193]
[1747578971210,3.93920432,2538.6,2538.0,16.193]
[1747578971611,3.93933425,2538.5,2538.0,20.1330734]
[1747578972746,3.9398174,2538.2,2538.1,8.108]
[1747578973119,3.940085,2538.1,2537.8,17.9195]
[1747578973437,3.93871361,2538.9,2538.1,8.085]
[1747578973635,3.93957473,2538.4,2538.1,8.085]
[1747578973827,3.93963382,2538.4,2538.1,8.085]
[1747578974351,3.93880375,2538.9,2538.4,3.93941435]
[1747578974551,8.5203,2539.5,2538.5,12.04120965]
[1747578974720,3.93793809,2539.4,2538.6,8.085]
[1747578975046,3.93864024,2539.0,2538.6,8.085]
[1747578975351,3.93871361,2538.9,2538.6,8.085]
[1747578975547,3.9390239,2538.7,2538.6,8.085]
[1747578975852,3.93936709,2538.5,2538.3,0.9814]
[1747578976027,3.93933425,2538.5,2538.4,16.191]
[1747578977258,3.93942976,2538.5,2538.0,4.92145101]
[1747578977471,4.4591804,2538.8,2538.0,4.62738023]
[1747578977665,3.9395309,2538.4,2538.1,16.182]
[1747578978052,3.93975493,2538.3,2538.1,16.182]
[1747578978451,0.5203,2538.8,2538.0,0.9814]
[1747578978631,0.5203,2538.8,2538.2,16.174]
[1747578978832,3.9390239,2538.7,2538.2,16.174]
[1747578979157,0.5203,2539.1,2538.3,0.9814]
[1747578979360,3.93900655,2538.8,2538.3,0.9814]
[1747578979566,0.5203,2539.1,2538.3,0.9814]
[1747578979767,3.93894836,2538.8,2538.3,4.92095209]
[1747578979952,3.93809317,2539.3,2538.4,2.10949521]
[1747578980156,3.93929714,2538.6,2538.5,16.177]
[1747578981470,4.4591511,2538.9,2538.2,8.086]
[1747578981643,3.93917907,2538.6,2538.5,8.085]
[1747578982472,0.5203,2539.2,2538.5,13.00563678]
[1747578982687,4.45855686,2539.2,2538.5,9.0664]
[1747578982977,3.93896137,2538.8,2538.5,9.0664]
[1747578983162,3.93878305,2538.9,2538.5,9.0664]
[1747578983362,3.93889247,2538.8,2538.5,9.0664]
[1747578983560,4.45859386,2539.2,2538.5,9.0664]
[1747578983875,3.93899508,2538.8,2538.5,9.0664]
[1747578984882,3.93875884,2538.9,2538.5,9.0664]
[1747578985062,3.9388903,2538.8,2538.5,9.0664]
[1747578985248,3.93880343,2538.9,2538.5,9.0664]
[1747578985872,0.524,2539.5,2538.5,14.70024474]
[1747578986074,3.93838004,2539.2,2538.7,3.93898296]
[1747578986274,3.93838004,2539.2,2538.8,8.085]
[1747578986582,3.93848805,2539.1,2538.9,0.9414]
[1747578986801,3.93855848,2539.0,2538.9,0.9414]
[1747578987081,3.93902682,2538.7,2538.6,0.9414]
[1747578987286,3.93902682,2538.7,2538.6,9.0264]
[1747578987784,0.524,2539.1,2538.6,17.0844]
[1747578987968,3.93854432,2539.1,2538.6,21.02352084]
[1747578988172,3.93859385,2539.0,2538.7,2.10235208]
[1747578988480,3.93855848,2539.0,2538.7,2.10235208]
[1747578988667,3.93855848,2539.0,2538.8,16.145]
[1747578988868,3.93871361,2538.9,2538.8,16.145]
[1747578989073,3.93862087,2539.0,2538.8,16.142]
[1747578990006,3.93862087,2539.0,2538.9,8.05]
[1747578990150,3.93862087,2539.0,2538.6,0.9414]
[1747578990466,3.93852518,2539.1,2538.7,16.131]
[1747578990664,3.93857782,2539.0,2538.7,16.131]
[1747578990864,3.93842034,2539.1,2538.7,16.131]
[1747578991064,3.93837829,2539.2,2538.7,20.07002149]
[1747578991363,3.93842513,2539.1,2538.7,17.49672926]
[1747578991567,3.93822479,2539.3,2538.8,3.93883971]
[1747578991768,3.93822479,2539.3,2538.9,0.9762]
[1747578991962,3.93800004,2539.4,2538.9,4.91478292]
[1747578992172,3.93811559,2539.3,2538.9,1.22606225]
[1747578992374,0.524,2539.7,2539.0,0.24986235]
[1747578992586,3.93785466,2539.5,2539.0,0.24986235]
[1747578993469,8.524,2539.9,2539.0,0.28924242]
[1747578993672,3.93731789,2539.8,2539.0,0.24986235]
[1747578993875,3.93731789,2539.8,2539.0,8.33486235]
[1747578993876,4.48731789,2539.8,2539.0,8.33486235]
[1747578994073,3.93840337,2539.1,2539.0,0.24986235]
[1747578994384,3.93840337,2539.1,2539.0,8.29086235]
[1747578994968,3.93776504,2539.6,2539.1,0.9415]
[1747578995364,3.93789433,2539.5,2539.1,0.9415]
[1747578995685,3.93791776,2539.5,2539.1,0.9415]